bitfinex/quotes_ETHUSD_20250929
["timestamp","ask_amount","ask_price","bid_price","bid_amount"]
[1759111254237,0.4323,4124.4,4124.0,2.42477735]
[1759111254537,0.6797,4124.4,4124.1,2.42476585]
[1759111254937,0.6797,4124.4,4123.8,3.2962]
[1759111254938,0.72937598,4124.3,4123.8,3.2962]
[1759111255140,0.72937598,4124.3,4124.1,2.42473031]
[1759111255320,0.72937598,4124.3,4124.2,2.42471267]
[1759111255725,0.72937598,4124.3,4123.9,0.7007]
[1759111255930,0.72937598,4124.3,4124.2,2.42471267]
[1759111260036,0.72937598,4124.3,4124.2,3.12541267]
[1759111260241,0.001,4124.7,4124.2,3.7557]
[1759111260441,0.001,4124.7,4124.3,0.7007]
[1759111260630,0.001,4124.7,4124.6,2.42447752]
[1759111261339,0.001,4124.7,4124.6,3.12517752]
[1759111262648,0.001,4124.7,4124.6,5.47947752]
[1759111262955,0.001,4124.7,4124.6,5.60027752]
[1759111264223,0.001,4124.7,4124.6,5.84147752]
[1759111265034,0.001,4124.7,4124.6,2.78647752]
[1759111265229,0.001,4124.7,4124.6,0.1208]
[1759111265563,0.2484,4124.7,4124.6,0.1208]
[1759111266176,0.001,4124.7,4124.6,2.54527752]
[1759111266477,0.001,4124.7,4124.6,3.24597752]
[1759111266677,0.001,4124.7,4124.6,3.27022229]
[1759111267278,0.001,4124.7,4124.6,3.24597752]
[1759111267492,0.001,4124.7,4124.6,3.27022229]
[1759111267648,0.001,4124.7,4124.6,3.24597752]
[1759111267984,0.001,4124.7,4124.6,4.03797752]
[1759111268543,0.001,4124.7,4124.6,7.09297752]
[1759111270661,0.001,4124.7,4124.6,9.97217752]
[1759111271688,0.09719082,4126.5,4126.1,2.42359613]
[1759111271854,0.09719082,4126.5,4126.1,5.47859613]
[1759111272057,0.09719082,4126.5,4126.1,6.16009613]
[1759111272565,0.2422,4127.1,4126.1,6.16009613]
[1759111272953,0.09719082,4126.5,4126.1,6.16009613]
[1759111273150,0.4494,4127.2,4126.1,6.16009613]
[1759111273151,0.001,4127.2,4126.1,6.16009613]
[1759111273356,0.09719082,4127.0,4126.1,6.95209613]
[1759111276267,0.2447,4127.2,4126.1,6.95209613]
[1759111276268,0.6729,4127.2,4126.1,6.95209613]
[1759111276469,0.001,4127.2,4126.1,6.26959613]
[1759111276669,0.6719,4126.8,4126.1,6.26959613]
[1759111276880,0.6719,4126.8,4126.1,3.66559613]
[1759111277069,0.6719,4126.8,4126.1,6.71959613]
[1759111277253,0.6719,4126.8,4126.1,3.66559613]
[1759111277456,0.001,4127.2,4126.1,3.66559613]
[1759111277457,0.6719,4126.4,4126.1,5.47759613]
[1759111278200,3.001,4127.2,4126.1,2.42359613]
[1759111278201,0.2447,4126.2,4126.1,2.42359613]
[1759111278398,0.6729,4126.2,4126.1,5.47759613]
[1759111278560,0.6729,4126.2,4124.9,0.2315]
[1759111278760,0.6729,4126.2,4126.0,2.4236295]
[1759111278994,0.001,4126.2,4126.1,2.861]
[1759111279487,0.6729,4126.2,4126.1,5.28459613]
[1759111279664,0.6729,4126.2,4126.1,2.861]
[1759111279993,0.6729,4126.2,4126.1,5.28459613]
[1759111280382,0.6729,4126.2,4125.2,0.45]
[1759111280581,0.2437,4126.1,4126.0,2.4236127]
[1759111280781,0.6719,4126.1,4126.0,5.4776127]
[1759111281088,0.6719,4126.1,4126.0,5.5984127]
[1759111281321,0.6719,4126.1,4126.0,3.1738]
[1759111281534,0.6719,4126.1,4125.9,3.053]
[1759111281690,0.001,4126.2,4125.9,3.053]
[1759111281997,0.6719,4126.0,4125.9,3.053]
[1759111282391,0.6719,4126.0,4125.8,0.1208]
[1759111282602,0.6719,4126.0,4125.5,3.1738]
[1759111282802,3.6719,4125.9,4125.5,3.1738]
[1759111282986,0.6719,4125.8,4125.5,3.1738]
[1759111283190,0.6719,4125.7,4125.5,3.1738]
[1759111283413,0.6719,4125.6,4125.5,3.1738]
[1759111284392,0.2437,4125.6,4125.5,5.59774861]
[1759111285713,0.6719,4126.1,4125.5,5.59774861]
[1759111285914,1.06653021,4126.0,4125.5,5.59774861]
[1759111286117,0.6719,4125.9,4125.5,3.1738]
[1759111286312,0.2437,4125.8,4125.5,3.1738]
[1759111286830,0.2437,4125.7,4125.5,5.59774547]
[1759111287208,0.6719,4125.7,4125.5,5.59774547]
[1759111288445,0.4282,4126.0,4125.6,2.42388985]
[1759111288762,0.6719,4125.9,4125.6,2.42388985]
[1759111288937,0.6719,4125.9,4125.5,5.59773071]
[1759111289243,0.6719,4125.9,4124.9,2.42430057]
[1759111289244,5.42387848,4125.7,4124.9,2.42430057]
[1759111289433,5.42387848,4125.7,4124.4,0.6815]
[1759111289434,3.0,4125.8,4125.0,2.42423782]
[1759111289635,0.6719,4125.6,4125.0,5.28823782]
[1759111289877,3.15294339,4125.8,4125.0,5.28823782]
[1759111289878,0.72916856,4125.8,4125.1,2.42412492]
[1759111290020,3.0,4125.6,4125.2,3.054]
[1759111290348,0.6719,4125.5,4125.2,3.054]
[1759111290539,3.6719,4125.5,4125.2,3.054]
[1759111290849,0.6719,4125.4,4125.0,2.42424027]
[1759111291019,0.4282,4125.4,4125.1,3.054]
[1759111291347,0.2437,4125.3,4125.1,3.054]
[1759111291520,0.6719,4125.3,4125.1,3.054]
[1759111291717,3.0,4125.1,4124.5,0.002]
[1759111292152,0.6719,4125.0,4124.5,0.002]
[1759111292318,2.42447752,4124.6,4124.5,0.002]
[1759111293057,6.09637752,4124.6,4124.5,0.002]
[1759111293243,6.94844641,4124.6,4124.5,0.002]
[1759111297748,4.62122114,4124.6,4124.5,0.002]
[1759111298063,7.04569866,4124.6,4124.5,0.002]
[1759111299337,7.16649866,4124.6,4124.5,0.002]
[1759111299876,8.50369866,4124.6,4124.5,0.002]
[1759111302661,32.16545199,4124.6,4124.5,0.002]
[1759111302890,2.42477146,4124.1,4124.0,0.002]
[1759111303045,45.44074816,4124.1,4124.0,0.002]
[1759111303239,46.80398691,4124.1,4124.0,0.002]
[1759111303544,46.90128009,4124.1,4124.0,0.002]
[1759111303850,3.88294786,4123.8,4123.7,0.002]
[1759111304169,31.34639911,4123.8,4123.7,0.002]
[1759111304368,30.53947711,4123.8,4123.7,0.002]
[1759111304664,31.20494943,4123.8,4123.7,0.002]
[1759111304968,17.70193543,4123.8,4123.7,0.002]
[1759111305540,16.71719343,4123.8,4123.7,0.002]
[1759111305860,21.39879943,4123.8,4123.7,0.002]
[1759111306163,19.00604943,4123.8,4123.7,0.002]
[1759111306463,18.02004943,4123.8,4123.7,0.002]
[1759111306661,30.90492543,4123.8,4123.7,0.002]
[1759111306836,21.73542343,4123.8,4123.7,0.002]
[1759111307045,20.24542343,4123.8,4123.7,0.002]
[1759111307237,17.50870743,4123.8,4123.7,0.002]
[1759111307657,36.14244104,4123.8,4123.7,0.002]
[1759111307866,38.13150579,4123.8,4123.7,0.002]
[1759111308260,7.67500666,4123.7,4123.6,0.002]
[1759111308431,33.23567691,4123.7,4123.6,0.002]
[1759111308631,25.95431491,4123.7,4123.6,0.002]
[1759111309434,24.61988591,4123.7,4123.6,0.002]
[1759111309765,13.85971891,4123.7,4123.6,0.002]
[1759111310533,13.05405091,4123.7,4123.6,0.002]
[1759111310733,16.53415591,4123.7,4123.6,0.002]
[1759111311625,10.86846891,4123.7,4123.6,0.002]
[1759111311829,17.41396591,4123.7,4123.6,0.002]
[1759111312025,6.97616225,4123.7,4123.6,0.002]
[1759111312264,9.93800666,4123.7,4123.6,0.002]
[1759111312465,10.16830666,4123.7,4123.6,0.002]
[1759111312669,18.97626566,4123.7,4123.6,0.002]
[1759111312839,4.513,4123.7,4123.6,0.002]
[1759111313162,9.93800666,4123.7,4123.6,0.002]
[1759111313357,7.513,4123.7,4123.6,0.002]
[1759111313559,11.18402663,4123.7,4123.6,0.002]
[1759111313777,11.41432663,4123.7,4123.6,0.002]
[1759111314060,11.85932663,4123.7,4123.6,0.002]
[1759111314443,11.18402663,4123.7,4123.6,0.002]
[1759111315427,8.75901997,4123.7,4123.6,0.002]
[1759111315634,6.055,4123.7,4123.6,0.6856]
[1759111315944,6.055,4123.7,4123.6,0.002]
[1759111315945,3.0,4123.7,4123.6,0.002]
[1759111316465,3.0,4123.7,4123.6,0.6856]
[1759111317961,3.1522998,4123.8,4123.6,0.6856]
[1759111318166,3.0,4123.7,4123.6,0.6856]
[1759111318461,3.0,4123.7,4123.6,0.002]
[1759111318875,3.0,4123.7,4123.6,2.42706547]
[1759111319082,3.0,4123.7,4123.6,0.6856]
[1759111319983,3.0972998,4123.8,4123.6,0.6856]
[1759111320280,3.0972998,4123.8,4123.7,0.6836]
[1759111320448,6.88300666,4123.7,4123.6,0.002]
[1759111320645,9.93800666,4123.7,4123.6,0.002]
[1759111320850,6.055,4123.7,4123.6,0.002]
[1759111321050,6.055,4123.7,4123.6,0.6856]
[1759111321857,8.48000666,4123.7,4123.6,0.6856]
[1759111322057,6.055,4123.7,4123.6,0.6856]
[1759111322263,3.1522998,4123.8,4123.6,0.6856]
[1759111322457,3.0,4123.7,4123.6,0.002]
[1759111323081,3.0,4123.7,4123.6,0.6856]
[1759111323854,5.42500666,4123.7,4123.6,0.2449]
[1759111324163,5.42500666,4123.7,4123.6,0.002]
[1759111324362,6.53730791,4123.7,4123.6,0.002]
[1759111324561,9.82260791,4123.7,4123.6,0.002]
[1759111325695,11.72560791,4123.7,4123.6,0.002]
[1759111328285,46.01868732,4123.7,4123.6,0.002]
[1759111328465,41.05292907,4123.7,4123.6,0.002]
[1759111329387,43.83940607,4123.7,4123.6,0.002]
[1759111330274,7.6751831,4123.4,4123.3,0.002]
[1759111330476,25.4330871,4123.4,4123.3,0.002]
[1759111330790,26.41882585,4123.4,4123.3,0.002]
[1759111331159,4.67530073,4123.2,4123.1,0.002]
[1759111331355,17.84764373,4123.2,4123.1,0.002]
[1759111331680,17.58578208,4123.2,4123.1,0.002]
[1759111331878,3.88353604,4122.8,4122.7,0.002]
[1759111332083,9.93853604,4122.8,4122.7,0.002]
[1759111332384,10.64853604,4122.8,4122.7,0.002]
[1759111333088,11.30953604,4122.8,4122.7,0.002]
[1759111333288,13.82769829,4122.8,4122.7,0.002]
[1759111333904,13.11769829,4122.8,4122.7,0.002]
[1759111334300,13.23920766,4122.8,4122.7,0.002]
[1759111335012,13.47580766,4122.8,4122.7,0.002]
[1759111336214,18.28058182,4122.8,4122.7,0.002]
[1759111338615,18.58822057,4122.8,4122.7,0.002]
[1759111340514,18.28058182,4122.8,4122.7,0.002]
[1759111341216,18.04398182,4122.8,4122.7,0.002]
[1759111341425,18.04398182,4122.8,4122.7,0.2329]
[1759111341624,18.04398182,4122.8,4122.7,0.002]
[1759111345393,10.18420766,4122.8,4122.7,0.663]
[1759111345592,13.24020766,4122.8,4122.7,0.663]
[1759111346900,9.26404541,4122.8,4122.7,0.663]
[1759111347332,11.64328353,4122.8,4122.7,0.663]
[1759111347710,8.58728353,4122.8,4122.7,0.663]
[1759111348527,7.92628353,4122.8,4122.7,0.663]
[1759111350023,10.35181957,4122.8,4122.7,0.002]
[1759111350344,9.35210727,4122.8,4122.7,0.002]
[1759111350547,10.35181957,4122.8,4122.7,0.002]
[1759111352367,11.80981957,4122.8,4122.7,0.002]
[1759111352565,12.51981957,4122.8,4122.7,0.002]
[1759111353014,12.90034322,4122.8,4122.7,0.002]
[1759111353644,23.79298122,4122.8,4122.7,0.002]
[1759111353957,26.31114347,4122.8,4122.7,0.002]
[1759111354318,26.61878222,4122.8,4122.7,0.002]
[1759111357324,6.88359487,4122.7,4122.6,0.002]
[1759111357671,10.48383362,4122.7,4122.6,0.002]
[1759111357837,13.47539587,4122.7,4122.6,0.002]
[1759111364535,13.00199587,4122.7,4122.6,0.002]
[1759111364739,13.47069587,4122.7,4122.6,0.002]
[1759111366059,12.45775712,4122.7,4122.6,0.002]
[1759111366361,17.26253128,4122.7,4122.6,0.6691]
[1759111368067,14.74436903,4122.7,4122.6,0.6691]
[1759111370371,15.4993143,4122.7,4122.6,0.6691]
[1759111371567,0.35340937,4122.8,4122.6,0.6691]
[1759111371568,0.47420937,4122.8,4122.6,0.6691]
[1759111371754,3.53020937,4122.8,4122.7,0.6671]
[1759111371947,8.95576585,4122.8,4122.7,0.6671]
[1759111372262,5.95576585,4122.8,4122.7,0.6671]
[1759111372639,8.95576585,4122.8,4122.7,0.6671]
[1759111372838,8.95574541,4122.8,4122.7,0.6671]
[1759111377462,6.53020937,4122.8,4122.7,0.6671]
[1759111378367,3.12250937,4122.8,4122.7,0.6671]
[1759111380969,5.54804541,4122.8,4122.7,0.6671]
[1759111381460,5.54804541,4122.8,4122.6,0.002]
[1759111381461,5.42559487,4122.7,4122.6,0.002]
[1759111381658,5.67519487,4122.7,4122.6,0.002]
[1759111381972,6.14389487,4122.7,4122.6,0.002]
[1759111382475,7.60189487,4122.7,4122.6,0.002]
[1759111382768,7.90953362,4122.7,4122.6,0.002]
[1759111382969,9.92150489,4122.7,4122.6,0.002]
[1759111383164,10.30206174,4122.7,4122.6,0.002]
[1759111383773,11.09406174,4122.7,4122.6,0.002]
[1759111384870,15.55414242,4122.7,4122.6,0.002]
[1759111388367,15.55414242,4122.7,4122.2,0.002]
[1759111388368,3.88383024,4122.3,4122.2,0.002]
[1759111388567,15.49854967,4122.3,4122.2,0.002]
[1759111388742,16.21484967,4122.3,4122.2,0.002]
[1759111388947,16.65214967,4122.3,4122.2,0.002]
[1759111391571,17.12987681,4122.3,4122.2,0.002]
[1759111391775,19.30747571,4122.3,4122.2,0.002]
[1759111392470,3.4373,4122.3,4122.2,0.6968]
[1759111392684,6.4923,4122.3,4122.2,0.6968]
[1759111392886,0.4373,4122.3,4122.2,0.6968]
[1759111393087,3.0,4122.3,4122.2,0.6968]
[1759111393888,0.12250937,4122.8,4122.2,0.6968]
[1759111394097,3.0,4122.6,4122.3,0.6948]
[1759111394266,3.12250937,4122.8,4122.4,0.6948]
[1759111394592,3.1208,4122.4,4122.2,0.002]
[1759111394779,3.055,4122.3,4122.2,0.002]
[1759111395180,3.055,4122.3,4122.2,0.4714]
[1759111395380,6.055,4122.3,4122.2,0.6968]
[1759111395566,6.055,4122.3,4122.2,0.2274]
[1759111396300,6.055,4122.3,4122.2,0.6968]
[1759111396869,3.0,4122.3,4122.2,0.6968]
[1759111397072,3.0,4122.3,4122.2,3.12268908]
[1759111397998,3.0,4122.3,4122.2,0.8176]
[1759111398378,3.0,4122.3,4122.2,3.24348908]
[1759111399098,3.0,4122.3,4122.2,0.2274]
[1759111399272,3.0,4122.3,4122.2,0.6968]
[1759111399880,3.0,4122.3,4122.2,3.12268908]
[1759111400085,3.0,4122.3,4122.2,0.6968]
[1759111400486,3.0,4122.3,4122.2,3.12268908]
[1759111401003,3.0,4122.3,4122.2,0.8176]
[1759111401200,3.0,4122.3,4122.2,3.24348908]
[1759111402607,3.0,4122.3,4122.2,0.002]
[1759111403198,3.72975389,4122.3,4122.2,3.12268908]
[1759111403605,3.72975389,4122.3,4122.2,0.6968]
[1759111405676,3.72975389,4122.3,4122.2,3.12268908]
[1759111406204,3.72975389,4122.3,4122.2,0.6968]
[1759111407678,3.72975389,4122.3,4122.2,3.12268908]
[1759111408192,3.72975389,4122.3,4122.2,3.24348908]
[1759111408392,3.0,4122.3,4122.2,3.24348908]
[1759111408577,0.001,4122.6,4122.5,2.42571255]
[1759111408787,0.001,4122.6,4122.5,2.44996967]
[1759111409098,0.001,4122.6,4122.5,3.24131255]
[1759111409302,0.001,4122.6,4122.5,6.29531255]
[1759111409476,0.001,4122.6,4122.5,0.1208]
[1759111410000,0.001,4122.6,4122.5,3.24131255]
[1759111410501,0.001,4122.6,4122.5,0.8156]
[1759111410709,0.001,4122.6,4122.5,0.1208]
[1759111411912,0.1218,4122.6,4122.2,0.002]
[1759111412921,3.0,4122.5,4122.2,0.002]
[1759111413101,3.11601977,4122.5,4122.2,0.002]
[1759111413306,2.87718199,4122.4,4122.2,0.002]
[1759111413618,3.11608199,4122.4,4122.2,0.002]
[1759111413828,3.2389,4122.3,4122.2,0.002]
[1759111413986,3.3597,4122.3,4122.2,0.002]
[1759111415099,0.3597,4122.3,4122.2,0.002]
[1759111415298,3.3597,4122.3,4122.2,0.002]
[1759111415495,5.73680369,4122.3,4122.2,0.002]
[1759111415681,17.35052312,4122.3,4122.2,0.002]
[1759111417289,17.83943028,4122.3,4122.2,0.002]
[1759111418731,18.2200107,4122.3,4122.2,0.002]
[1759111420115,6.00125387,4122.3,4122.2,0.002]
[1759111420354,7.6328,4122.3,4122.2,0.002]
[1759111420637,8.3191,4122.3,4122.2,0.002]
[1759111420934,10.74493024,4122.3,4122.2,0.002]
[1759111421302,10.28723024,4122.3,4122.2,0.002]
[1759111422040,10.74493024,4122.3,4122.2,0.002]
[1759111422242,12.7567265,4122.3,4122.2,0.002]
[1759111423192,8.18659626,4122.3,4122.2,0.002]
[1759111423398,6.2956,4122.3,4122.2,0.7034]
[1759111423624,6.2956,4122.3,4122.2,0.002]
[1759111423625,8.72143024,4122.3,4122.2,0.002]
[1759111424069,6.2956,4122.3,4122.2,0.002]
[1759111424345,3.2416,4122.3,4122.2,0.7034]
[1759111425304,3.2416,4122.3,4122.2,0.002]
[1759111425503,3.2416,4122.3,4122.2,0.7034]
[1759111425824,3.2416,4122.3,4122.2,0.002]
[1759111426736,3.2416,4122.3,4122.2,0.472]
[1759111427037,3.2416,4122.3,4122.2,0.7034]
[1759111428532,3.1208,4122.3,4122.2,3.27434797]
[1759111428739,3.1208,4122.3,4122.2,0.8242]
[1759111429537,3.1208,4122.3,4122.2,3.25008908]
[1759111430452,3.1208,4122.3,4122.2,0.8242]
[1759111431218,3.1208,4122.3,4122.2,3.25008908]
[1759111431826,3.1208,4122.3,4122.2,0.8242]
[1759111432434,3.1208,4122.3,4122.2,0.3542]
[1759111432637,3.1208,4122.3,4122.2,0.8242]
[1759111434611,3.1208,4122.3,4122.2,0.1228]
[1759111434945,3.1208,4122.3,4122.2,0.8242]
[1759111439874,3.1208,4122.3,4122.2,0.1228]
[1759111440373,3.1208,4122.3,4122.2,3.25008908]
[1759111440576,3.0,4122.3,4122.2,0.8242]
[1759111441131,3.0,4122.3,4122.2,3.25008908]
[1759111441980,0.72966692,4122.5,4122.2,2.80434797]
[1759111442137,0.001,4122.6,4122.4,2.42572095]
[1759111442338,0.001,4122.6,4122.3,0.7014]
[1759111442532,3.2296,4122.6,4122.4,0.1208]
[1759111442959,3.001,4122.6,4122.4,0.1208]
[1759111445755,3.001,4122.6,4122.4,0.3522]
[1759111446387,3.001,4122.6,4122.4,0.1208]
[1759111448067,0.6863,4122.5,4122.4,0.1208]
[1759111448271,0.6863,4122.5,4122.2,0.1228]
[1759111448472,0.6863,4122.4,4122.2,0.1228]
[1759111448963,0.2286,4122.4,4122.2,0.1228]
[1759111450100,0.2286,4122.4,4122.2,2.54867915]
[1759111450400,3.4692,4122.6,4122.2,2.54867915]
[1759111450401,3.001,4122.6,4122.2,3.21847915]
[1759111450897,3.001,4122.6,4122.2,0.1228]
[1759111451100,0.72970952,4122.5,4122.2,0.1228]
[1759111451273,0.95550952,4122.5,4122.2,0.1228]
[1759111452767,3.001,4122.6,4122.2,2.54867832]
[1759111452967,0.001,4122.6,4122.3,0.7184583]
[1759111453269,0.73069354,4122.6,4122.3,0.7184583]
[1759111453465,0.73069354,4122.6,4122.3,3.14425939]
[1759111454808,0.73069354,4122.6,4122.3,0.0242583]
[1759111455099,0.001,4122.6,4122.5,2.54651255]
[1759111455273,0.001,4122.6,4122.5,3.26496967]
[1759111455672,4.80427556,4122.6,4122.5,0.1208]
[1759111455888,3.0,4122.5,4122.3,0.1208]
[1759111456101,0.001,4122.6,4122.5,0.1208]
[1759111456289,0.001,4122.6,4122.5,3.11991255]
[1759111456489,0.001,4122.6,4122.5,3.14416967]
[1759111458515,0.001,4122.6,4122.5,6.19716967]
[1759111458701,0.001,4122.6,4122.5,6.17291255]
[1759111459604,0.001,4122.6,4122.5,6.96491255]
[1759111460108,0.001,4122.6,4122.5,7.08571255]
[1759111463414,0.001,4123.1,4122.5,7.08571255]
[1759111463415,0.001,4124.6,4123.0,3.21741838]
[1759111463708,0.001,4124.6,4122.6,2.42565371]
[1759111463709,0.001,4124.6,4124.1,3.33757146]
[1759111463876,0.001,4124.6,4124.1,6.39057146]
[1759111464077,0.001,4124.6,4124.1,7.08477146]
[1759111465838,0.001,4124.6,4124.1,6.96397146]
[1759111466005,0.001,4124.6,4124.1,7.08477146]
[1759111466942,0.001,4124.6,4124.1,4.03177146]
[1759111467145,0.001,4124.6,4124.1,7.08377146]
[1759111468437,0.001,4124.6,4124.1,4.03177146]
[1759111468637,0.001,4124.6,4124.1,2.54557146]
[1759111468797,0.4669,4124.5,4124.1,5.59757146]
[1759111469322,0.4669,4124.5,4124.1,6.38957146]
[1759111469505,0.4669,4124.5,4124.1,2.54557146]
[1759111469704,0.2426,4124.2,4124.1,2.54557146]
[1759111470035,0.7095,4124.2,4124.1,5.59757146]
[1759111470637,0.7095,4124.2,4124.1,3.1728]
[1759111470839,0.7095,4124.2,4124.1,0.1208]
[1759111471334,0.7095,4124.2,4124.1,3.1728]
[1759111471500,0.7095,4124.2,4124.1,0.1208]
[1759111471696,0.7095,4124.2,4124.1,3.1728]
[1759111473132,0.001,4124.2,4124.1,5.47677146]
[1759111473912,0.001,4124.2,4124.1,5.70537146]
[1759111474346,0.001,4124.2,4124.1,5.47677146]
[1759111475554,0.001,4124.2,4124.1,6.17097146]
[1759111479743,0.001,4124.2,4124.1,6.96297146]
[1759111483153,0.001,4124.2,4124.1,7.08377146]
[1759111483754,0.001,4125.1,4125.0,3.21624242]
[1759111483948,0.001,4125.1,4125.0,6.26724242]
[1759111484151,0.001,4125.1,4125.0,6.50084242]
[1759111484351,0.001,4125.1,4125.0,6.26724242]
[1759111485287,0.001,4125.1,4125.0,6.95714242]
[1759111486895,0.3887,4125.6,4125.5,2.42394861]
[1759111487190,0.3887,4125.6,4125.5,5.47494861]
[1759111487566,0.6263,4125.6,4125.5,5.47494861]
[1759111489491,0.2376,4125.6,4125.5,5.47494861]
[1759111490285,0.4377,4125.9,4125.6,2.42388985]
[1759111490485,3.6753,4125.9,4125.6,2.44812874]
[1759111490790,0.2386,4125.7,4125.6,2.42388985]
[1759111491461,0.001,4125.7,4125.6,2.42388985]
[1759111492263,0.001,4125.7,4125.6,3.21588985]
[1759111493893,0.001,4125.7,4125.6,3.33668985]
[1759111495090,0.2386,4125.7,4125.6,5.59468985]
[1759111495260,0.6763,4125.7,4125.6,5.59468985]
[1759111495670,0.2386,4125.7,4125.6,5.59468985]
[1759111498208,0.2386,4125.7,4125.6,2.54468985]
[1759111498414,0.001,4125.7,4125.6,5.59468985]
[1759111498910,0.2386,4125.7,4125.6,5.59668985]
[1759111499583,0.6763,4125.7,4125.6,5.59668985]
[1759111500107,0.001,4125.7,4125.6,7.07858985]
[1759111500412,0.6763,4125.7,4125.6,2.54668985]
[1759111500578,0.6763,4125.7,4125.6,5.59668985]
[1759111501014,0.2386,4125.7,4125.6,5.59668985]
[1759111502235,0.2386,4125.7,4125.6,0.002]
[1759111502236,0.6763,4125.7,4125.6,0.002]
[1759111502390,7.02258515,4125.7,4125.6,0.002]
[1759111502592,7.02258515,4125.7,4125.1,0.002]
[1759111502593,2.42410614,4125.3,4125.1,0.002]
[1759111502791,5.54824054,4125.2,4125.1,0.002]
[1759111502974,6.22354054,4125.2,4125.1,0.002]
[1759111503588,8.64766543,4125.2,4125.1,0.002]
[1759111503904,6.22354054,4125.2,4125.1,0.002]
[1759111505802,12.12185698,4125.2,4125.1,0.002]
[1759111506006,9.69773209,4125.2,4125.1,0.002]
[1759111506207,12.12185698,4125.2,4125.1,0.002]
[1759111507918,12.50218258,4125.2,4125.1,0.002]
[1759111508332,2.42435996,4124.8,4123.1,0.6899]
[1759111508636,2.42435996,4124.8,4121.9,0.002]
[1759111508637,2.42485047,4124.0,4122.6,0.6899]
[1759111508819,5.54824054,4123.7,4123.0,2.42536115]
[1759111508999,5.54824054,4123.7,4122.6,0.6899]
[1759111509000,3.0,4123.6,4123.1,2.4253494]
[1759111509201,3.2439,4123.6,4123.5,2.42512428]
[1759111509521,0.2439,4123.8,4123.5,2.42512428]
[1759111509820,0.2439,4123.8,4123.4,2.42517304]
[1759111510135,0.2439,4123.8,4123.4,2.44942487]
[1759111510434,0.2439,4123.8,4123.4,2.42517304]
[1759111510788,0.2439,4123.8,4123.0,0.4487]
[1759111510789,5.79214054,4123.7,4122.2,0.4507]
[1759111510996,3.0,4123.6,4123.2,2.42529561]
[1759111511217,3.7173,4123.6,4123.3,2.4252055]
[1759111511428,3.2439,4123.6,4123.3,2.4252055]
[1759111511822,3.2439,4123.6,4123.4,2.42517157]
[1759111512022,3.2439,4123.6,4123.3,2.42522872]
[1759111512228,3.2439,4123.6,4123.4,2.54597686]
[1759111513030,0.7149,4123.9,4123.5,0.02425124]
[1759111513825,0.7149,4123.9,4123.6,2.42505556]
[1759111514323,3.3623,4124.1,4123.6,2.42505556]
[1759111514526,3.2415,4124.1,4123.6,0.02425065]
[1759111514828,3.2415,4124.1,4123.8,2.54571982]
[1759111515325,3.2415,4124.1,4123.9,2.42488686]
[1759111516096,3.2415,4124.1,4123.8,2.54573699]
[1759111517626,4.21555161,4124.1,4123.8,0.1208]
[1759111517802,3.0,4123.9,4123.6,0.002]
[1759111518020,8.54824054,4123.7,4123.6,0.002]
[1759111518419,9.23934054,4123.7,4123.6,0.002]
[1759111518633,10.41784508,4123.7,4123.6,0.002]
[1759111518931,3.2415,4123.7,4123.6,0.002]
[1759111519239,3.0,4123.7,4123.6,0.1228]
[1759111519408,3.0,4123.7,4123.6,0.14705065]
[1759111521150,3.0,4123.7,4123.6,2.57211612]
[1759111521614,5.54824054,4124.6,4123.6,0.85945065]
[1759111521812,3.0,4124.5,4124.0,2.42482457]
[1759111522120,4.16543405,4124.5,4124.2,0.1208]
[1759111522325,5.42472724,4124.2,4123.6,0.002]
[1759111522504,3.0,4123.7,4123.6,0.002]
[1759111522832,3.0,4123.7,4123.6,0.1228]
[1759111523030,3.6911,4123.7,4123.6,0.1228]
[1759111523543,3.2415,4123.7,4123.6,0.1228]
[1759111523917,0.4496,4124.0,4123.7,2.42500666]
[1759111523918,3.0,4124.0,4123.7,2.42500666]
[1759111524221,3.0,4124.0,4123.6,0.1228]
[1759111524222,0.6911,4123.9,4123.6,0.1228]
[1759111524744,0.6911,4123.9,4123.6,2.54785007]
[1759111524745,0.2415,4123.8,4123.6,2.54785007]
[1759111526245,3.0,4124.0,4123.6,0.1228]
[1759111526650,0.2415,4123.9,4123.6,0.1228]
[1759111527020,0.2415,4123.9,4123.7,2.42500487]
[1759111528023,0.2415,4123.9,4123.6,0.1228]
[1759111528215,3.0,4124.0,4123.8,2.42489173]
[1759111528918,3.0,4124.0,4123.6,3.01234535]
[1759111529124,3.0,4124.0,4123.7,0.02425006]
[1759111529525,3.2415,4124.0,4123.7,0.02425006]
[1759111530025,3.2415,4124.0,4123.8,2.42490663]
[1759111530330,3.2415,4124.0,4123.7,2.44924212]
[1759111530535,3.2415,4124.0,4123.6,0.1228]
[1759111530742,3.2415,4124.0,4123.7,2.42498499]
[1759111532951,3.0,4124.0,4123.8,0.4645]
[1759111533125,3.0,4124.0,4123.8,2.67280126]
[1759111533327,4.47710233,4124.5,4123.8,2.67280126]
[1759111533328,3.0,4124.6,4124.0,2.42478626]
[1759111533561,3.2415,4124.6,4124.0,2.67268626]
[1759111533768,3.2415,4124.6,4124.2,0.1208]
[1759111534063,0.2415,4124.5,4124.2,0.1208]
[1759111534562,0.2415,4124.4,4124.2,0.1208]
[1759111534858,3.0,4124.6,4124.2,0.1208]
[1759111535027,0.2415,4124.5,4124.2,0.1208]
[1759111535431,3.0,4124.6,4124.2,0.1208]
[1759111535737,0.2415,4124.5,4124.2,0.1208]
[1759111536546,3.0,4124.6,4124.2,0.1208]